[Event "Titled Tuesday Blitz July 6 2021"]
[White "Le, Tuan Minh"]
[Black "Ozen, Bahadir"]
[WhiteFideId "12401153"]
[BlackFideId "6337058"]
[WhiteElo "2450"]
[BlackElo "2503"]
[Result "1-0"]
[Round "08"]
[TimeControl "180+1"]
[Date "2021.07.06"]
[WhiteClock "0:00:04"]
[BlackClock "0:00:04"]

1. d4 {[%clk 0:03:00]}  Nf6 {[%clk 0:03:00]} 2. Nf3 {[%clk 0:03:00]}  e6 {[%clk 0:03:01]} 3. Bf4 {[%clk 0:02:59]}  Be7 {[%clk 0:03:01]} 4. Nbd2 {[%clk 0:02:58]}  Nh5 {[%clk 0:02:54]} 5. Bg3 {[%clk 0:02:58]}  d6 {[%clk 0:02:52]} 6. e4 {[%clk 0:02:57]}  b6 {[%clk 0:02:52]} 7. c3 {[%clk 0:02:57]}  Bb7 {[%clk 0:02:51]} 8. Bd3 {[%clk 0:02:55]}  Nd7 {[%clk 0:02:51]} 9. O-O {[%clk 0:02:55]}  g6 {[%clk 0:02:43]} 10. Re1 {[%clk 0:02:52]}  Kf8 {[%clk 0:02:35]} 11. Nf1 {[%clk 0:02:51]}  Kg7 {[%clk 0:02:33]} 12. Qd2 {[%clk 0:02:49]}  Nxg3 {[%clk 0:02:31]} 13. Nxg3 {[%clk 0:02:46]}  h5 {[%clk 0:02:30]} 14. h3 {[%clk 0:02:45]}  a6 {[%clk 0:02:23]} 15. Rad1 {[%clk 0:02:45]}  c5 {[%clk 0:02:22]} 16. Qe3 {[%clk 0:02:40]}  Qc7 {[%clk 0:01:53]} 17. Qf4 {[%clk 0:02:24]}  h4 {[%clk 0:01:50]} 18. Nf1 {[%clk 0:02:23]}  Rh5 {[%clk 0:01:49]} 19. N1h2 {[%clk 0:02:16]}  b5 {[%clk 0:01:41]} 20. Ng4 {[%clk 0:02:12]}  Rc8 {[%clk 0:01:40]} 21. e5 {[%clk 0:02:07]}  Bxf3 {[%clk 0:01:27]} 22. Qxf3 {[%clk 0:02:07]}  dxe5 {[%clk 0:01:27]} 23. dxe5 {[%clk 0:01:59]}  c4 {[%clk 0:01:15]} 24. Bc2 {[%clk 0:01:58]}  Nxe5 {[%clk 0:01:15]} 25. Qe4 {[%clk 0:00:55]}  Nxg4 {[%clk 0:01:09]} 26. Qxg4 {[%clk 0:00:56]}  Rg5 {[%clk 0:00:06]} 27. Qf3 {[%clk 0:00:50]}  Bf6 {[%clk 0:00:06]} 28. Rd2 {[%clk 0:00:24]}  Rd8 {[%clk 0:00:05]} 29. Rde2 {[%clk 0:00:24]}  Rgd5 {[%clk 0:00:04]} 30. Qg4 {[%clk 0:00:22]}  Rg5 {[%clk 0:00:05]} 31. Qf3 {[%clk 0:00:20]}  Rgd5 {[%clk 0:00:05]} 32. Be4 {[%clk 0:00:20]}  Rg5 {[%clk 0:00:05]} 33. a3 {[%clk 0:00:20]}  Rd6 {[%clk 0:00:05]} 34. Bb1 {[%clk 0:00:20]}  Qc5 {[%clk 0:00:06]} 35. Re4 {[%clk 0:00:20]}  Qd5 {[%clk 0:00:06]} 36. Qe3 {[%clk 0:00:20]}  Qc5 {[%clk 0:00:06]} 37. Qf3 {[%clk 0:00:20]}  Qd5 {[%clk 0:00:06]} 38. Bc2 {[%clk 0:00:19]}  Rh5 {[%clk 0:00:06]} 39. Qe3 {[%clk 0:00:16]}  Qc5 {[%clk 0:00:06]} 40. Qe2 {[%clk 0:00:17]}  Qd5 {[%clk 0:00:06]} 41. Rd1 {[%clk 0:00:17]}  Qc5 {[%clk 0:00:06]} 42. Rg4 {[%clk 0:00:12]}  Rxd1+ {[%clk 0:00:05]} 43. Qxd1 {[%clk 0:00:12]}  Rg5 {[%clk 0:00:06]} 44. Rf4 {[%clk 0:00:09]}  Rd5 {[%clk 0:00:05]} 45. Qf3 {[%clk 0:00:09]}  Qd6 {[%clk 0:00:05]} 46. Rxf6 {[%clk 0:00:08]}  Rd2 {[%clk 0:00:05]} 47. Rxf7+ {[%clk 0:00:08]}  Kh6 {[%clk 0:00:04]} 48. Qe4 {[%clk 0:00:04]} 1-0


[Site "https://www.chess.com"]

[Event "Titled Tuesday Blitz July 6 2021"]
[White "Levitskiy, Andrey"]
[Black "Arutinian, David"]
[WhiteFideId "14132885"]
[BlackFideId "13601741"]
[WhiteElo "2323"]
[BlackElo "2525"]
[Result "0-1"]
[Round "08"]
[TimeControl "180+1"]
[Date "2021.07.06"]
[WhiteClock "0:00:01"]
[BlackClock "0:00:20"]

1. e4 {[%clk 0:03:00]}  c6 {[%clk 0:02:59]} 2. d4 {[%clk 0:03:00]}  d5 {[%clk 0:02:59]} 3. Nc3 {[%clk 0:03:00]}  dxe4 {[%clk 0:02:59]} 4. Nxe4 {[%clk 0:03:01]}  Bf5 {[%clk 0:02:59]} 5. Ng3 {[%clk 0:03:01]}  Bg6 {[%clk 0:02:59]} 6. h4 {[%clk 0:03:02]}  h6 {[%clk 0:02:59]} 7. Nf3 {[%clk 0:03:02]}  Nd7 {[%clk 0:02:58]} 8. h5 {[%clk 0:03:02]}  Bh7 {[%clk 0:02:59]} 9. Bd3 {[%clk 0:03:02]}  Bxd3 {[%clk 0:02:59]} 10. Qxd3 {[%clk 0:03:02]}  e6 {[%clk 0:03:00]} 11. Bd2 {[%clk 0:03:00]}  Ngf6 {[%clk 0:03:00]} 12. O-O-O {[%clk 0:02:59]}  Be7 {[%clk 0:03:01]} 13. Kb1 {[%clk 0:02:59]}  Qb6 {[%clk 0:02:59]} 14. Ne2 {[%clk 0:02:55]}  Rd8 {[%clk 0:02:53]} 15. Nf4 {[%clk 0:02:36]}  O-O {[%clk 0:02:38]} 16. Rhg1 {[%clk 0:02:13]}  Ng4 {[%clk 0:02:25]} 17. Qe2 {[%clk 0:02:13]}  Qb5 {[%clk 0:02:20]} 18. c4 {[%clk 0:01:56]}  Qf5+ {[%clk 0:02:18]} 19. Ka1 {[%clk 0:01:56]}  Rfe8 {[%clk 0:02:05]} 20. g3 {[%clk 0:01:51]}  c5 {[%clk 0:02:01]} 21. Bc3 {[%clk 0:01:49]}  Bf6 {[%clk 0:01:56]} 22. Rge1 {[%clk 0:01:28]}  a6 {[%clk 0:01:47]} 23. a3 {[%clk 0:00:52]}  cxd4 {[%clk 0:01:36]} 24. Nxd4 {[%clk 0:00:44]}  Bxd4 {[%clk 0:01:36]} 25. Bxd4 {[%clk 0:00:28]}  e5 {[%clk 0:01:34]} 26. Nd5 {[%clk 0:00:06]}  exd4 {[%clk 0:01:14]} 27. Ne7+ {[%clk 0:00:05]}  Rxe7 {[%clk 0:01:14]} 28. Qxe7 {[%clk 0:00:06]}  Rc8 {[%clk 0:01:15]} 29. f4 {[%clk 0:00:05]}  Ngf6 {[%clk 0:01:14]} 30. Rxd4 {[%clk 0:00:05]}  b5 {[%clk 0:01:02]} 31. cxb5 {[%clk 0:00:04]}  axb5 {[%clk 0:01:02]} 32. Qb4 {[%clk 0:00:04]}  Qxh5 {[%clk 0:01:00]} 33. Red1 {[%clk 0:00:04]}  Qf5 {[%clk 0:00:58]} 34. Qb3 {[%clk 0:00:03]}  Nc5 {[%clk 0:00:53]} 35. Qxb5 {[%clk 0:00:03]}  Qe6 {[%clk 0:00:54]} 36. Kb1 {[%clk 0:00:01]}  Qf5+ {[%clk 0:00:53]} 37. Ka1 {[%clk 0:00:01]}  Qe6 {[%clk 0:00:53]} 38. Kb1 {[%clk 0:00:01]}  h5 {[%clk 0:00:54]} 39. Qb4 {[%clk 0:00:01]}  Nb3 {[%clk 0:00:46]} 40. Rd8+ {[%clk 0:00:01]}  Rxd8 {[%clk 0:00:46]} 41. Rxd8+ {[%clk 0:00:02]}  Kh7 {[%clk 0:00:47]} 42. Rd1 {[%clk 0:00:02]}  Ne4 {[%clk 0:00:43]} 43. Qb5 {[%clk 0:00:02]}  g6 {[%clk 0:00:39]} 44. Qd3 {[%clk 0:00:02]}  Nec5 {[%clk 0:00:38]} 45. Qc2 {[%clk 0:00:01]}  Qg4 {[%clk 0:00:33]} 46. f5 {[%clk 0:00:01]}  gxf5 {[%clk 0:00:31]} 47. Rd5 {[%clk 0:00:01]}  Kg6 {[%clk 0:00:22]} 48. Rd6+ {[%clk 0:00:01]}  f6 {[%clk 0:00:21]} 49. Rd5 {[%clk 0:00:01]}  Qe4 {[%clk 0:00:20]} 0-1


[Site "https://www.chess.com"]

[Event "Titled Tuesday Blitz July 6 2021"]
[White "Lopez Gracia, Fernando"]
[Black "deribas12345"]
[WhiteFideId "2207184"]
[WhiteElo "2385"]
[BlackElo "2535"]
[Result "1-0"]
[Round "08"]
[TimeControl "180+1"]
[Date "2021.07.06"]
[WhiteClock "0:01:28"]
[BlackClock "0:00:33"]

1. e4 {[%clk 0:03:00]}  c5 {[%clk 0:02:59]} 2. c3 {[%clk 0:02:57]}  e6 {[%clk 0:02:56]} 3. d4 {[%clk 0:02:57]}  d5 {[%clk 0:02:55]} 4. exd5 {[%clk 0:02:57]}  exd5 {[%clk 0:02:52]} 5. Nf3 {[%clk 0:02:58]}  c4 {[%clk 0:02:51]} 6. g3 {[%clk 0:02:56]}  Bd6 {[%clk 0:02:51]} 7. Bg2 {[%clk 0:02:56]}  Ne7 {[%clk 0:02:51]} 8. O-O {[%clk 0:02:56]}  O-O {[%clk 0:02:51]} 9. b3 {[%clk 0:02:56]}  cxb3 {[%clk 0:02:51]} 10. axb3 {[%clk 0:02:56]}  Nbc6 {[%clk 0:02:52]} 11. Ba3 {[%clk 0:02:56]}  Bg4 {[%clk 0:02:50]} 12. h3 {[%clk 0:02:56]}  Bh5 {[%clk 0:02:49]} 13. Re1 {[%clk 0:02:56]}  Re8 {[%clk 0:02:48]} 14. Bxd6 {[%clk 0:02:55]}  Qxd6 {[%clk 0:02:47]} 15. Nbd2 {[%clk 0:02:55]}  h6 {[%clk 0:02:45]} 16. Nf1 {[%clk 0:02:54]}  a6 {[%clk 0:02:42]} 17. Ne3 {[%clk 0:02:54]}  Rac8 {[%clk 0:02:39]} 18. Qd2 {[%clk 0:02:51]}  Bg6 {[%clk 0:02:37]} 19. Ng4 {[%clk 0:02:46]}  Be4 {[%clk 0:02:34]} 20. Nfe5 {[%clk 0:02:44]}  f5 {[%clk 0:02:23]} 21. Nxc6 {[%clk 0:02:43]}  Nxc6 {[%clk 0:02:19]} 22. Bxe4 {[%clk 0:02:42]}  dxe4 {[%clk 0:02:14]} 23. Nh2 {[%clk 0:02:37]}  Rf8 {[%clk 0:01:57]} 24. Nf1 {[%clk 0:02:31]}  Ne5 {[%clk 0:01:55]} 25. Nh2 {[%clk 0:02:24]}  Nd3 {[%clk 0:01:55]} 26. Re3 {[%clk 0:02:22]}  f4 {[%clk 0:01:51]} 27. Rxe4 {[%clk 0:02:17]}  Nxf2 {[%clk 0:01:45]} 28. Qxf2 {[%clk 0:02:08]}  fxg3 {[%clk 0:01:45]} 29. Qe3 {[%clk 0:02:03]}  gxh2+ {[%clk 0:01:43]} 30. Kh1 {[%clk 0:02:04]}  Qg6 {[%clk 0:01:13]} 31. c4 {[%clk 0:01:47]}  Rce8 {[%clk 0:01:12]} 32. Re1 {[%clk 0:01:41]}  Rxe4 {[%clk 0:00:53]} 33. Qxe4 {[%clk 0:01:40]}  Qxe4+ {[%clk 0:00:53]} 34. Rxe4 {[%clk 0:01:40]}  Rf3 {[%clk 0:00:54]} 35. b4 {[%clk 0:01:39]}  Rb3 {[%clk 0:00:50]} 36. d5 {[%clk 0:01:36]}  Rxb4 {[%clk 0:00:46]} 37. d6 {[%clk 0:01:36]}  Rb1+ {[%clk 0:00:46]} 38. Kxh2 {[%clk 0:01:36]}  Rd1 {[%clk 0:00:47]} 39. c5 {[%clk 0:01:35]}  Rd5 {[%clk 0:00:40]} 40. Re8+ {[%clk 0:01:33]}  Kh7 {[%clk 0:00:37]} 41. Rc8 {[%clk 0:01:30]}  b6 {[%clk 0:00:35]} 42. cxb6 {[%clk 0:01:28]}  Rxd6 {[%clk 0:00:35]} 43. b7 {[%clk 0:01:29]}  Rd2+ {[%clk 0:00:33]} 44. Kg3 {[%clk 0:01:28]} 1-0


[Site "https://www.chess.com"]

[Event "Titled Tuesday Blitz July 6 2021"]
[White "Lortkipanidze, Nodar"]
[Black "Koellner, Ruben Gideon"]
[WhiteFideId "13604058"]
[BlackFideId "12993093"]
[WhiteElo "2312"]
[BlackElo "2561"]
[Result "1-0"]
[Round "08"]
[TimeControl "180+1"]
[Date "2021.07.06"]
[WhiteClock "0:00:16"]
[BlackClock "0:00:01"]

1. e4 {[%clk 0:03:00]}  d6 {[%clk 0:02:59]} 2. d4 {[%clk 0:03:01]}  Nf6 {[%clk 0:02:59]} 3. Nc3 {[%clk 0:03:01]}  e5 {[%clk 0:02:59]} 4. Nge2 {[%clk 0:03:01]}  Nc6 {[%clk 0:02:59]} 5. d5 {[%clk 0:03:01]}  Ne7 {[%clk 0:02:59]} 6. f3 {[%clk 0:03:00]}  g6 {[%clk 0:02:54]} 7. Bg5 {[%clk 0:02:56]}  Bg7 {[%clk 0:02:53]} 8. Qd2 {[%clk 0:02:57]}  h6 {[%clk 0:02:49]} 9. Be3 {[%clk 0:02:57]}  c6 {[%clk 0:02:47]} 10. dxc6 {[%clk 0:02:56]}  bxc6 {[%clk 0:02:47]} 11. O-O-O {[%clk 0:02:56]}  d5 {[%clk 0:02:47]} 12. f4 {[%clk 0:02:49]}  Be6 {[%clk 0:01:58]} 13. fxe5 {[%clk 0:02:46]}  Nxe4 {[%clk 0:01:55]} 14. Nxe4 {[%clk 0:02:44]}  dxe4 {[%clk 0:01:56]} 15. Nd4 {[%clk 0:02:02]}  Bxe5 {[%clk 0:01:40]} 16. Nxe6 {[%clk 0:01:36]}  Qxd2+ {[%clk 0:01:41]} 17. Bxd2 {[%clk 0:01:35]}  fxe6 {[%clk 0:01:39]} 18. g3 {[%clk 0:01:17]}  Rd8 {[%clk 0:01:08]} 19. Bg2 {[%clk 0:01:09]}  Rd4 {[%clk 0:01:00]} 20. c3 {[%clk 0:01:01]}  Ra4 {[%clk 0:00:47]} 21. Rhe1 {[%clk 0:00:59]}  Rxa2 {[%clk 0:00:25]} 22. Rxe4 {[%clk 0:00:58]}  Ra1+ {[%clk 0:00:25]} 23. Kc2 {[%clk 0:00:58]}  Rxd1 {[%clk 0:00:26]} 24. Kxd1 {[%clk 0:00:59]}  Bc7 {[%clk 0:00:18]} 25. Rxe6 {[%clk 0:00:58]}  Kf7 {[%clk 0:00:17]} 26. Re1 {[%clk 0:00:50]}  Rd8 {[%clk 0:00:14]} 27. Kc2 {[%clk 0:00:49]}  h5 {[%clk 0:00:12]} 28. Bg5 {[%clk 0:00:37]}  Rd7 {[%clk 0:00:12]} 29. Rf1+ {[%clk 0:00:30]}  Kg8 {[%clk 0:00:08]} 30. Rf6 {[%clk 0:00:25]}  Kg7 {[%clk 0:00:02]} 31. Bh3 {[%clk 0:00:20]}  Nf5 {[%clk 0:00:02]} 32. Rxc6 {[%clk 0:00:20]}  Bb6 {[%clk 0:00:01]} 33. Bf4 {[%clk 0:00:16]} 1-0


[Site "https://www.chess.com"]

[Event "Titled Tuesday Blitz July 6 2021"]
[White "Maghsoodloo, Parham"]
[Black "Onyshchuk, Volodymyr"]
[WhiteFideId "12539929"]
[BlackFideId "14114038"]
[WhiteElo "2601"]
[BlackElo "2603"]
[Result "1-0"]
[Round "08"]
[TimeControl "180+1"]
[Date "2021.07.06"]
[WhiteClock "0:00:43"]
[BlackClock "0:00:04"]

1. e4 {[%clk 0:03:00]}  d6 {[%clk 0:02:57]} 2. d4 {[%clk 0:03:00]}  Nf6 {[%clk 0:02:58]} 3. Nc3 {[%clk 0:03:01]}  g6 {[%clk 0:02:59]} 4. h3 {[%clk 0:03:00]}  Bg7 {[%clk 0:02:57]} 5. g4 {[%clk 0:03:01]}  e5 {[%clk 0:02:52]} 6. Nge2 {[%clk 0:02:59]}  exd4 {[%clk 0:02:48]} 7. Nxd4 {[%clk 0:02:59]}  Nc6 {[%clk 0:02:48]} 8. Nde2 {[%clk 0:02:50]}  h5 {[%clk 0:02:39]} 9. g5 {[%clk 0:02:50]}  Nd7 {[%clk 0:02:39]} 10. f4 {[%clk 0:02:47]}  Nc5 {[%clk 0:02:38]} 11. Be3 {[%clk 0:02:45]}  O-O {[%clk 0:02:36]} 12. Bg2 {[%clk 0:02:45]}  Bd7 {[%clk 0:02:20]} 13. O-O {[%clk 0:02:43]}  b5 {[%clk 0:02:18]} 14. e5 {[%clk 0:02:37]}  b4 {[%clk 0:02:17]} 15. Nd5 {[%clk 0:02:38]}  Na4 {[%clk 0:02:06]} 16. b3 {[%clk 0:02:30]}  Nb6 {[%clk 0:02:04]} 17. Nf6+ {[%clk 0:02:29]}  Bxf6 {[%clk 0:02:04]} 18. exf6 {[%clk 0:02:28]}  Re8 {[%clk 0:02:02]} 19. Qd2 {[%clk 0:02:23]}  d5 {[%clk 0:01:55]} 20. Rae1 {[%clk 0:02:22]}  Bf5 {[%clk 0:01:53]} 21. Ng3 {[%clk 0:02:22]}  Qd7 {[%clk 0:01:48]} 22. Kh2 {[%clk 0:02:19]}  Rad8 {[%clk 0:01:42]} 23. Bc5 {[%clk 0:02:11]}  Rxe1 {[%clk 0:01:23]} 24. Rxe1 {[%clk 0:02:11]}  a5 {[%clk 0:01:23]} 25. Nxf5 {[%clk 0:01:52]}  Qxf5 {[%clk 0:01:22]} 26. h4 {[%clk 0:01:52]}  d4 {[%clk 0:00:24]} 27. Bxb6 {[%clk 0:01:52]}  cxb6 {[%clk 0:00:24]} 28. Bxc6 {[%clk 0:01:53]}  d3 {[%clk 0:00:24]} 29. Be4 {[%clk 0:01:42]}  Qg4 {[%clk 0:00:18]} 30. cxd3 {[%clk 0:01:26]}  Qxh4+ {[%clk 0:00:17]} 31. Kg2 {[%clk 0:01:26]}  Qg4+ {[%clk 0:00:17]} 32. Kf2 {[%clk 0:01:26]}  Qh4+ {[%clk 0:00:17]} 33. Ke2 {[%clk 0:01:26]}  Qg4+ {[%clk 0:00:17]} 34. Kf1 {[%clk 0:01:16]}  h4 {[%clk 0:00:17]} 35. Rc1 {[%clk 0:01:05]}  h3 {[%clk 0:00:15]} 36. Qf2 {[%clk 0:01:05]}  Re8 {[%clk 0:00:11]} 37. Qf3 {[%clk 0:01:02]}  Qh4 {[%clk 0:00:10]} 38. Kg1 {[%clk 0:01:02]}  Kh7 {[%clk 0:00:05]} 39. Kh2 {[%clk 0:01:02]}  Kg8 {[%clk 0:00:04]} 40. Rc2 {[%clk 0:00:48]}  Rd8 {[%clk 0:00:04]} 41. Qg3 {[%clk 0:00:43]} 1-0


[Site "https://www.chess.com"]

[Event "Titled Tuesday Blitz July 6 2021"]
[White "Molina, Roberto Junio Brito"]
[Black "Spata, German"]
[WhiteFideId "2109450"]
[BlackFideId "113026"]
[WhiteElo "2402"]
[BlackElo "2238"]
[Result "1-0"]
[Round "08"]
[TimeControl "180+1"]
[Date "2021.07.06"]
[WhiteClock "0:00:12"]
[BlackClock "0:00:08"]

1. d4 {[%clk 0:03:00]}  d5 {[%clk 0:02:54]} 2. c4 {[%clk 0:03:01]}  c6 {[%clk 0:02:54]} 3. Nc3 {[%clk 0:03:00]}  Nf6 {[%clk 0:02:51]} 4. Nf3 {[%clk 0:03:00]}  dxc4 {[%clk 0:02:48]} 5. a4 {[%clk 0:02:59]}  e6 {[%clk 0:02:47]} 6. Ne5 {[%clk 0:02:58]}  c5 {[%clk 0:02:42]} 7. Be3 {[%clk 0:02:51]}  Nd5 {[%clk 0:02:19]} 8. Nxc4 {[%clk 0:02:31]}  Nxe3 {[%clk 0:02:17]} 9. fxe3 {[%clk 0:02:31]}  Nc6 {[%clk 0:02:06]} 10. d5 {[%clk 0:02:18]}  Qh4+ {[%clk 0:02:06]} 11. g3 {[%clk 0:02:18]}  Qxc4 {[%clk 0:01:58]} 12. dxc6 {[%clk 0:02:18]}  bxc6 {[%clk 0:01:43]} 13. Bg2 {[%clk 0:02:17]}  Bd7 {[%clk 0:01:38]} 14. O-O {[%clk 0:02:17]}  Rd8 {[%clk 0:01:24]} 15. Rc1 {[%clk 0:02:14]}  Qb4 {[%clk 0:01:16]} 16. Ne4 {[%clk 0:02:03]}  Qb8 {[%clk 0:01:04]} 17. Qc2 {[%clk 0:01:49]}  Qe5 {[%clk 0:00:59]} 18. Kh1 {[%clk 0:01:43]}  Be7 {[%clk 0:00:56]} 19. Nxc5 {[%clk 0:01:40]}  O-O {[%clk 0:00:36]} 20. Nd3 {[%clk 0:00:50]}  Qxe3 {[%clk 0:00:33]} 21. b4 {[%clk 0:00:41]}  Rb8 {[%clk 0:00:27]} 22. Rb1 {[%clk 0:00:34]}  h6 {[%clk 0:00:25]} 23. Rf4 {[%clk 0:00:27]}  e5 {[%clk 0:00:17]} 24. Re4 {[%clk 0:00:26]}  Qb6 {[%clk 0:00:13]} 25. Rxe5 {[%clk 0:00:23]}  Bf6 {[%clk 0:00:08]} 26. Rc5 {[%clk 0:00:21]}  Rfe8 {[%clk 0:00:06]} 27. a5 {[%clk 0:00:20]}  Qd8 {[%clk 0:00:05]} 28. Rd1 {[%clk 0:00:16]}  Qe7 {[%clk 0:00:05]} 29. e4 {[%clk 0:00:14]}  Bd4 {[%clk 0:00:03]} 30. Rc4 {[%clk 0:00:14]}  Bf6 {[%clk 0:00:03]} 31. e5 {[%clk 0:00:14]}  Bxe5 {[%clk 0:00:03]} 32. Re4 {[%clk 0:00:09]}  f6 {[%clk 0:00:03]} 33. Nxe5 {[%clk 0:00:09]}  fxe5 {[%clk 0:00:04]} 34. Qc4+ {[%clk 0:00:06]}  Kh8 {[%clk 0:00:04]} 35. Rde1 {[%clk 0:00:04]}  Qd6 {[%clk 0:00:03]} 36. Qc3 {[%clk 0:00:03]}  Bf5 {[%clk 0:00:02]} 37. Rxe5 {[%clk 0:00:03]}  Rxe5 {[%clk 0:00:02]} 38. Qxe5 {[%clk 0:00:04]}  Qxe5 {[%clk 0:00:02]} 39. Rxe5 {[%clk 0:00:05]}  Rxb4 {[%clk 0:00:02]} 40. Rxf5 {[%clk 0:00:05]}  Rb1+ {[%clk 0:00:02]} 41. Rf1 {[%clk 0:00:06]}  Rb5 {[%clk 0:00:02]} 42. Rf8+ {[%clk 0:00:05]}  Kh7 {[%clk 0:00:02]} 43. Bxc6 {[%clk 0:00:06]}  Rxa5 {[%clk 0:00:02]} 44. Be4+ {[%clk 0:00:07]}  g6 {[%clk 0:00:02]} 45. Rf7+ {[%clk 0:00:08]}  Kg8 {[%clk 0:00:02]} 46. Bxg6 {[%clk 0:00:08]}  Rg5 {[%clk 0:00:03]} 47. Rxa7 {[%clk 0:00:06]}  Rxg6 {[%clk 0:00:03]} 48. Kg2 {[%clk 0:00:07]}  Rd6 {[%clk 0:00:03]} 49. Ra4 {[%clk 0:00:07]}  Rd2+ {[%clk 0:00:02]} 50. Kh3 {[%clk 0:00:08]}  Kg7 {[%clk 0:00:03]} 51. Rg4+ {[%clk 0:00:08]}  Kh7 {[%clk 0:00:04]} 52. Rf4 {[%clk 0:00:09]}  Kg6 {[%clk 0:00:04]} 53. Rf1 {[%clk 0:00:09]}  h5 {[%clk 0:00:04]} 54. Rg1 {[%clk 0:00:10]}  Kg5 {[%clk 0:00:05]} 55. Rg2 {[%clk 0:00:10]}  Rd1 {[%clk 0:00:05]} 56. Re2 {[%clk 0:00:09]}  Rd4 {[%clk 0:00:05]} 57. Re5+ {[%clk 0:00:09]}  Kg6 {[%clk 0:00:05]} 58. Kg2 {[%clk 0:00:10]}  Rd2+ {[%clk 0:00:06]} 59. Kg1 {[%clk 0:00:10]}  Rd1+ {[%clk 0:00:06]} 60. Kf2 {[%clk 0:00:11]}  Rd2+ {[%clk 0:00:06]} 61. Re2 {[%clk 0:00:11]}  Rxe2+ {[%clk 0:00:06]} 62. Kxe2 {[%clk 0:00:11]}  Kg5 {[%clk 0:00:07]} 63. Kf3 {[%clk 0:00:11]}  Kf5 {[%clk 0:00:07]} 64. h3 {[%clk 0:00:11]}  Kg5 {[%clk 0:00:07]} 65. Ke4 {[%clk 0:00:12]}  Kg6 {[%clk 0:00:07]} 66. Kf4 {[%clk 0:00:11]}  Kf6 {[%clk 0:00:08]} 67. h4 {[%clk 0:00:12]} 1-0


[Site "https://www.chess.com"]

[Event "Titled Tuesday Blitz July 6 2021"]
[White "Naroditsky, Daniel"]
[Black "Assaubayeva, Bibisara"]
[WhiteFideId "2026961"]
[BlackFideId "13708694"]
[WhiteElo "2608"]
[BlackElo "2232"]
[Result "1-0"]
[Round "08"]
[TimeControl "180+1"]
[Date "2021.07.06"]
[WhiteClock "0:00:31"]
[BlackClock "0:00:05"]

1. e4 {[%clk 0:03:00]}  c5 {[%clk 0:02:58]} 2. Nc3 {[%clk 0:02:58]}  d6 {[%clk 0:02:58]} 3. f4 {[%clk 0:02:55]}  g6 {[%clk 0:02:57]} 4. Nf3 {[%clk 0:02:55]}  Bg7 {[%clk 0:02:54]} 5. Bb5+ {[%clk 0:02:56]}  Bd7 {[%clk 0:02:51]} 6. Bc4 {[%clk 0:02:56]}  Nc6 {[%clk 0:02:50]} 7. d3 {[%clk 0:02:57]}  Na5 {[%clk 0:02:39]} 8. O-O {[%clk 0:02:51]}  Nxc4 {[%clk 0:02:37]} 9. dxc4 {[%clk 0:02:52]}  Bc6 {[%clk 0:02:30]} 10. Qe1 {[%clk 0:02:42]}  Nh6 {[%clk 0:02:06]} 11. f5 {[%clk 0:01:59]}  Ng4 {[%clk 0:01:44]} 12. Bf4 {[%clk 0:01:57]}  Qd7 {[%clk 0:01:34]} 13. h3 {[%clk 0:01:53]}  Nf6 {[%clk 0:01:29]} 14. Rd1 {[%clk 0:01:51]}  gxf5 {[%clk 0:01:19]} 15. Ne5 {[%clk 0:01:51]}  dxe5 {[%clk 0:00:40]} 16. Rxd7 {[%clk 0:01:50]}  Nxd7 {[%clk 0:00:41]} 17. Bg5 {[%clk 0:01:44]}  fxe4 {[%clk 0:00:39]} 18. Qh4 {[%clk 0:01:39]}  f6 {[%clk 0:00:38]} 19. Qh5+ {[%clk 0:01:32]}  Kd8 {[%clk 0:00:36]} 20. Qf7 {[%clk 0:01:24]}  Bf8 {[%clk 0:00:29]} 21. Be3 {[%clk 0:01:24]}  Kc7 {[%clk 0:00:27]} 22. Rd1 {[%clk 0:01:20]}  Rd8 {[%clk 0:00:26]} 23. Nd5+ {[%clk 0:01:16]}  Kc8 {[%clk 0:00:22]} 24. Qe6 {[%clk 0:01:13]}  Kb8 {[%clk 0:00:17]} 25. b4 {[%clk 0:01:13]}  Nb6 {[%clk 0:00:10]} 26. Bxc5 {[%clk 0:00:58]}  Nxc4 {[%clk 0:00:10]} 27. a4 {[%clk 0:00:41]}  e3 {[%clk 0:00:09]} 28. Nxe3 {[%clk 0:00:41]}  Bh6 {[%clk 0:00:07]} 29. Rxd8+ {[%clk 0:00:38]}  Rxd8 {[%clk 0:00:08]} 30. Qxc4 {[%clk 0:00:34]}  Rd2 {[%clk 0:00:06]} 31. Qg8+ {[%clk 0:00:30]}  Kc7 {[%clk 0:00:06]} 32. Qxh7 {[%clk 0:00:29]}  Bxe3+ {[%clk 0:00:05]} 33. Bxe3 {[%clk 0:00:30]}  Rxg2+ {[%clk 0:00:05]} 34. Kf1 {[%clk 0:00:31]}  Rh2 {[%clk 0:00:06]} 35. Qxe7+ {[%clk 0:00:31]}  Kb8 {[%clk 0:00:05]} 36. Qd8# {[%clk 0:00:31]} 1-0


[Site "https://www.chess.com"]

[Event "Titled Tuesday Blitz July 6 2021"]
[White "Obolentseva, Alexandra"]
[Black "Bartel, Michal"]
[WhiteFideId "24153648"]
[BlackFideId "1119257"]
[WhiteElo "2113"]
[BlackElo "2271"]
[Result "0-1"]
[Round "08"]
[TimeControl "180+1"]
[Date "2021.07.06"]
[WhiteClock "0:00:01"]
[BlackClock "0:01:10"]

1. d4 {[%clk 0:02:59]}  Nf6 {[%clk 0:02:57]} 2. c4 {[%clk 0:02:59]}  c5 {[%clk 0:02:57]} 3. d5 {[%clk 0:02:58]}  e6 {[%clk 0:02:57]} 4. Nc3 {[%clk 0:02:57]}  exd5 {[%clk 0:02:57]} 5. cxd5 {[%clk 0:02:58]}  d6 {[%clk 0:02:58]} 6. e4 {[%clk 0:02:57]}  g6 {[%clk 0:02:58]} 7. Nge2 {[%clk 0:02:56]}  h5 {[%clk 0:02:55]} 8. Bg5 {[%clk 0:02:50]}  Bg7 {[%clk 0:02:54]} 9. Qd2 {[%clk 0:02:39]}  Nbd7 {[%clk 0:02:52]} 10. f4 {[%clk 0:02:36]}  Qb6 {[%clk 0:02:49]} 11. O-O-O {[%clk 0:02:24]}  Nxe4 {[%clk 0:02:40]} 12. Nxe4 {[%clk 0:02:12]}  O-O {[%clk 0:02:37]} 13. N2c3 {[%clk 0:02:02]}  a6 {[%clk 0:02:34]} 14. Bd3 {[%clk 0:01:57]}  c4 {[%clk 0:02:29]} 15. Bb1 {[%clk 0:01:53]}  Qc7 {[%clk 0:02:29]} 16. Be7 {[%clk 0:01:51]}  Re8 {[%clk 0:02:28]} 17. Bxd6 {[%clk 0:01:51]}  Qa5 {[%clk 0:02:28]} 18. Rhe1 {[%clk 0:01:44]}  b5 {[%clk 0:02:28]} 19. Nc5 {[%clk 0:01:35]}  Rxe1 {[%clk 0:02:25]} 20. Rxe1 {[%clk 0:01:33]}  b4 {[%clk 0:02:25]} 21. Re8+ {[%clk 0:01:17]}  Kh7 {[%clk 0:02:25]} 22. N3e4 {[%clk 0:01:16]}  c3 {[%clk 0:02:13]} 23. Ng5+ {[%clk 0:01:09]}  Kh6 {[%clk 0:02:13]} 24. Nxf7+ {[%clk 0:01:10]}  Kh7 {[%clk 0:02:14]} 25. bxc3 {[%clk 0:00:56]}  bxc3 {[%clk 0:02:13]} 26. Qe2 {[%clk 0:00:53]}  Nf6 {[%clk 0:01:56]} 27. Ne4 {[%clk 0:00:31]}  Nxe4 {[%clk 0:01:40]} 28. Bxe4 {[%clk 0:00:27]}  Bg4 {[%clk 0:01:40]} 29. Bxg6+ {[%clk 0:00:24]}  Kxg6 {[%clk 0:01:40]} 30. Qe4+ {[%clk 0:00:19]}  Kxf7 {[%clk 0:01:40]} 31. Qe7+ {[%clk 0:00:18]}  Kg6 {[%clk 0:01:41]} 32. Qe4+ {[%clk 0:00:17]}  Bf5 {[%clk 0:01:38]} 33. Re6+ {[%clk 0:00:17]}  Kh7 {[%clk 0:01:38]} 34. Qxf5+ {[%clk 0:00:17]}  Kg8 {[%clk 0:01:39]} 35. Rg6 {[%clk 0:00:14]}  Ra7 {[%clk 0:01:26]} 36. Qc8+ {[%clk 0:00:11]}  Kh7 {[%clk 0:01:26]} 37. Qf5 {[%clk 0:00:11]}  Kg8 {[%clk 0:01:27]} 38. Re6 {[%clk 0:00:10]}  Qb5 {[%clk 0:01:25]} 39. Re2 {[%clk 0:00:06]}  Qxe2 {[%clk 0:01:24]} 40. Qc8+ {[%clk 0:00:06]}  Kh7 {[%clk 0:01:24]} 41. Qf5+ {[%clk 0:00:06]}  Kg8 {[%clk 0:01:22]} 42. Qc8+ {[%clk 0:00:05]}  Kf7 {[%clk 0:01:21]} 43. Qf5+ {[%clk 0:00:05]}  Ke8 {[%clk 0:01:22]} 44. Qc8+ {[%clk 0:00:05]}  Kf7 {[%clk 0:01:20]} 45. Qf5+ {[%clk 0:00:05]}  Bf6 {[%clk 0:01:17]} 46. Qh7+ {[%clk 0:00:05]}  Ke8 {[%clk 0:01:18]} 47. Qg8+ {[%clk 0:00:03]}  Kd7 {[%clk 0:01:17]} 48. Qf7+ {[%clk 0:00:03]}  Be7 {[%clk 0:01:13]} 49. Qf5+ {[%clk 0:00:02]}  Kxd6 {[%clk 0:01:14]} 50. Qg6+ {[%clk 0:00:01]}  Kxd5 {[%clk 0:01:10]} 0-1


[Site "https://www.chess.com"]